[Event "Titled Tuesday Blitz June 15 2021"]
[White "Howell, David W L"]
[Black "Ponkratov, Pavel"]
[WhiteFideId "410608"]
[BlackFideId "4157800"]
[WhiteElo "2643"]
[BlackElo "2636"]
[Result "0-1"]
[Round "11"]
[TimeControl "180+1"]
[Date "2021.06.15"]
[WhiteClock "0:00:01"]
[BlackClock "0:00:22"]

1. d4 {[%clk 0:03:00]}  c5 {[%clk 0:03:00]} 2. c3 {[%clk 0:02:52]}  Nf6 {[%clk 0:02:59]} 3. Bg5 {[%clk 0:02:49]}  Ne4 {[%clk 0:02:57]} 4. Bf4 {[%clk 0:02:49]}  Qb6 {[%clk 0:02:56]} 5. Qb3 {[%clk 0:02:49]}  cxd4 {[%clk 0:02:52]} 6. Qxb6 {[%clk 0:02:48]}  axb6 {[%clk 0:02:52]} 7. cxd4 {[%clk 0:02:49]}  Nc6 {[%clk 0:02:53]} 8. Nc3 {[%clk 0:02:03]}  Nxd4 {[%clk 0:02:45]} 9. Rc1 {[%clk 0:01:54]}  Nxc3 {[%clk 0:02:39]} 10. Rxc3 {[%clk 0:01:55]}  Nc6 {[%clk 0:02:34]} 11. a3 {[%clk 0:01:52]}  e5 {[%clk 0:02:32]} 12. Bd2 {[%clk 0:01:48]}  d5 {[%clk 0:02:32]} 13. e3 {[%clk 0:01:49]}  Bd7 {[%clk 0:02:30]} 14. Bb5 {[%clk 0:01:40]}  Bc5 {[%clk 0:02:20]} 15. Nf3 {[%clk 0:01:34]}  f6 {[%clk 0:02:20]} 16. O-O {[%clk 0:01:31]}  Ke7 {[%clk 0:02:19]} 17. Rd1 {[%clk 0:01:29]}  Rhd8 {[%clk 0:02:18]} 18. h3 {[%clk 0:01:24]}  d4 {[%clk 0:02:11]} 19. exd4 {[%clk 0:01:23]}  Nxd4 {[%clk 0:02:11]} 20. Nxd4 {[%clk 0:01:21]}  exd4 {[%clk 0:02:08]} 21. Rb3 {[%clk 0:01:13]}  Bxb5 {[%clk 0:01:56]} 22. Rxb5 {[%clk 0:01:14]}  Kf7 {[%clk 0:01:45]} 23. Kf1 {[%clk 0:01:11]}  Rd7 {[%clk 0:01:42]} 24. Bb4 {[%clk 0:01:07]}  Rc8 {[%clk 0:01:39]} 25. Ke2 {[%clk 0:01:07]}  d3+ {[%clk 0:01:34]} 26. Rxd3 {[%clk 0:00:51]}  Re8+ {[%clk 0:01:33]} 27. Kd2 {[%clk 0:00:50]}  Rxd3+ {[%clk 0:01:29]} 28. Kxd3 {[%clk 0:00:51]}  Bxf2 {[%clk 0:01:29]} 29. Rd5 {[%clk 0:00:49]}  Ke6 {[%clk 0:01:29]} 30. Rd6+ {[%clk 0:00:48]}  Kf5 {[%clk 0:01:19]} 31. Rd7 {[%clk 0:00:47]}  Re3+ {[%clk 0:01:14]} 32. Kd2 {[%clk 0:00:42]}  Rg3 {[%clk 0:01:14]} 33. Ke2 {[%clk 0:00:39]}  Rxg2 {[%clk 0:01:14]} 34. Kf3 {[%clk 0:00:32]}  Rh2 {[%clk 0:01:13]} 35. Bd6 {[%clk 0:00:33]}  Rxh3+ {[%clk 0:01:07]} 36. Kxf2 {[%clk 0:00:32]}  Rd3 {[%clk 0:01:08]} 37. Rd8 {[%clk 0:00:26]}  Rd2+ {[%clk 0:01:07]} 38. Ke3 {[%clk 0:00:23]}  Rxb2 {[%clk 0:01:07]} 39. Bb4 {[%clk 0:00:21]}  Rb3+ {[%clk 0:01:06]} 40. Kf2 {[%clk 0:00:21]}  h5 {[%clk 0:01:05]} 41. Rd5+ {[%clk 0:00:22]}  Kg4 {[%clk 0:01:02]} 42. Rd4+ {[%clk 0:00:22]}  Kg5 {[%clk 0:01:02]} 43. Rd5+ {[%clk 0:00:21]}  f5 {[%clk 0:01:02]} 44. Bd2+ {[%clk 0:00:19]}  Kf6 {[%clk 0:00:58]} 45. Rd6+ {[%clk 0:00:17]}  Kf7 {[%clk 0:00:53]} 46. Rd7+ {[%clk 0:00:17]}  Kf6 {[%clk 0:00:53]} 47. Rd6+ {[%clk 0:00:17]}  Ke5 {[%clk 0:00:50]} 48. Rg6 {[%clk 0:00:17]}  Rxa3 {[%clk 0:00:48]} 49. Rxg7 {[%clk 0:00:17]}  Ra2 {[%clk 0:00:47]} 50. Ke1 {[%clk 0:00:18]}  b5 {[%clk 0:00:45]} 51. Rxb7 {[%clk 0:00:18]}  Ra1+ {[%clk 0:00:39]} 52. Kf2 {[%clk 0:00:17]}  Rb1 {[%clk 0:00:39]} 53. Bc3+ {[%clk 0:00:14]}  Kf4 {[%clk 0:00:39]} 54. Bd2+ {[%clk 0:00:12]}  Ke4 {[%clk 0:00:39]} 55. Re7+ {[%clk 0:00:12]}  Kd3 {[%clk 0:00:39]} 56. Rd7+ {[%clk 0:00:12]}  Kc2 {[%clk 0:00:39]} 57. Ba5 {[%clk 0:00:11]}  Ra1 {[%clk 0:00:35]} 58. Bb4 {[%clk 0:00:10]}  Ra4 {[%clk 0:00:35]} 59. Bf8 {[%clk 0:00:10]}  b4 {[%clk 0:00:31]} 60. Rd4 {[%clk 0:00:10]}  Kc3 {[%clk 0:00:30]} 61. Rf4 {[%clk 0:00:07]}  Ra2+ {[%clk 0:00:29]} 62. Kg3 {[%clk 0:00:08]}  b3 {[%clk 0:00:29]} 63. Rxf5 {[%clk 0:00:08]}  Ra7 {[%clk 0:00:24]} 64. Rc5+ {[%clk 0:00:07]}  Kd3 {[%clk 0:00:23]} 65. Rb5 {[%clk 0:00:07]}  Kc2 {[%clk 0:00:23]} 66. Bc5 {[%clk 0:00:06]}  Rg7+ {[%clk 0:00:22]} 67. Kh3 {[%clk 0:00:05]}  Rg5 {[%clk 0:00:22]} 68. Kh4 {[%clk 0:00:03]}  Rd5 {[%clk 0:00:22]} 69. Kh3 {[%clk 0:00:01]}  b2 {[%clk 0:00:22]} 70. Rxb2+ {[%clk 0:00:02]}  Kxb2 {[%clk 0:00:22]} 71. Be7 {[%clk 0:00:02]}  Kc2 {[%clk 0:00:23]} 72. Kh4 {[%clk 0:00:03]}  Kd3 {[%clk 0:00:21]} 73. Bg5 {[%clk 0:00:04]}  Ke4 {[%clk 0:00:21]} 74. Kxh5 {[%clk 0:00:04]}  Kf5 {[%clk 0:00:21]} 75. Kh4 {[%clk 0:00:01]}  Rd4+ {[%clk 0:00:22]} 76. Kh5 {[%clk 0:00:01]}  Rd1 {[%clk 0:00:22]} 0-1


[Site "https://www.chess.com"]

[Event "Titled Tuesday Blitz June 15 2021"]
[White "Ivanisevic, Ivan"]
[Black "Har-Zvi, Ronen"]
[WhiteFideId "912417"]
[BlackFideId "2801485"]
[WhiteElo "2499"]
[BlackElo "2523"]
[Result "0-1"]
[Round "11"]
[TimeControl "180+1"]
[Date "2021.06.15"]
[WhiteClock "0:00:01"]
[BlackClock "0:00:17"]

1. d4 {[%clk 0:03:00]}  d5 {[%clk 0:03:00]} 2. c4 {[%clk 0:03:01]}  c6 {[%clk 0:03:00]} 3. Nf3 {[%clk 0:03:00]}  Nf6 {[%clk 0:03:01]} 4. Nc3 {[%clk 0:03:00]}  dxc4 {[%clk 0:03:01]} 5. a4 {[%clk 0:02:57]}  Bf5 {[%clk 0:03:01]} 6. Ne5 {[%clk 0:02:56]}  Nbd7 {[%clk 0:03:01]} 7. Nxc4 {[%clk 0:02:55]}  Qc7 {[%clk 0:03:02]} 8. Bg5 {[%clk 0:02:48]}  e5 {[%clk 0:02:51]} 9. e3 {[%clk 0:02:48]}  Be7 {[%clk 0:02:45]} 10. Bd3 {[%clk 0:02:44]}  Bxd3 {[%clk 0:02:44]} 11. Qxd3 {[%clk 0:02:43]}  O-O {[%clk 0:02:40]} 12. O-O {[%clk 0:02:42]}  exd4 {[%clk 0:02:40]} 13. Bf4 {[%clk 0:02:40]}  Nc5 {[%clk 0:02:33]} 14. Qxd4 {[%clk 0:02:01]}  Qd8 {[%clk 0:02:32]} 15. Rad1 {[%clk 0:01:52]}  Qxd4 {[%clk 0:02:30]} 16. exd4 {[%clk 0:01:52]}  Ne6 {[%clk 0:02:29]} 17. Be5 {[%clk 0:01:52]}  Rfd8 {[%clk 0:02:28]} 18. Rfe1 {[%clk 0:01:47]}  Nd5 {[%clk 0:02:27]} 19. Nxd5 {[%clk 0:01:44]}  Rxd5 {[%clk 0:02:26]} 20. Ne3 {[%clk 0:01:43]}  Ra5 {[%clk 0:02:07]} 21. d5 {[%clk 0:01:43]}  cxd5 {[%clk 0:02:01]} 22. Nxd5 {[%clk 0:01:43]}  Bf8 {[%clk 0:02:01]} 23. Nc3 {[%clk 0:01:28]}  Rc8 {[%clk 0:02:01]} 24. Rd7 {[%clk 0:01:08]}  Nc5 {[%clk 0:02:00]} 25. Rd5 {[%clk 0:01:08]}  Ra6 {[%clk 0:01:57]} 26. Red1 {[%clk 0:01:04]}  f6 {[%clk 0:01:52]} 27. Bd4 {[%clk 0:00:58]}  Nxa4 {[%clk 0:01:50]} 28. Nb5 {[%clk 0:00:57]}  Nc5 {[%clk 0:01:31]} 29. h4 {[%clk 0:00:54]}  h6 {[%clk 0:01:25]} 30. Be3 {[%clk 0:00:49]}  b6 {[%clk 0:01:11]} 31. Nd4 {[%clk 0:00:42]}  Ra2 {[%clk 0:01:10]} 32. b4 {[%clk 0:00:42]}  Na4 {[%clk 0:01:10]} 33. Rd7 {[%clk 0:00:39]}  Nc3 {[%clk 0:01:09]} 34. Re1 {[%clk 0:00:36]}  Bxb4 {[%clk 0:01:05]} 35. Nf5 {[%clk 0:00:32]}  Bf8 {[%clk 0:01:02]} 36. Kh2 {[%clk 0:00:27]}  Ra5 {[%clk 0:00:59]} 37. g4 {[%clk 0:00:24]}  Nd5 {[%clk 0:00:56]} 38. Bd4 {[%clk 0:00:23]}  Rc7 {[%clk 0:00:55]} 39. Rd8 {[%clk 0:00:22]}  Kf7 {[%clk 0:00:54]} 40. Ree8 {[%clk 0:00:21]}  Bc5 {[%clk 0:00:49]} 41. Bxc5 {[%clk 0:00:21]}  Raxc5 {[%clk 0:00:49]} 42. Rg8 {[%clk 0:00:20]}  Nf4 {[%clk 0:00:47]} 43. Rxg7+ {[%clk 0:00:19]}  Ke6 {[%clk 0:00:48]} 44. Rd6+ {[%clk 0:00:15]}  Ke5 {[%clk 0:00:47]} 45. Rg8 {[%clk 0:00:16]}  Re7 {[%clk 0:00:38]} 46. Rd1 {[%clk 0:00:14]}  Re6 {[%clk 0:00:36]} 47. Rgd8 {[%clk 0:00:13]}  Ke4 {[%clk 0:00:35]} 48. R8d4+ {[%clk 0:00:05]}  Kf3 {[%clk 0:00:34]} 49. R1d2 {[%clk 0:00:05]}  Rc1 {[%clk 0:00:34]} 50. Ne3 {[%clk 0:00:04]}  b5 {[%clk 0:00:26]} 51. Ra2 {[%clk 0:00:04]}  a5 {[%clk 0:00:24]} 52. Nf5 {[%clk 0:00:01]}  b4 {[%clk 0:00:21]} 53. Ng3 {[%clk 0:00:01]}  Ne2 {[%clk 0:00:17]} 0-1


[Site "https://www.chess.com"]

[Event "Titled Tuesday Blitz June 15 2021"]
[White "Jacobson, Brandon"]
[Black "Praggnanandhaa R"]
[WhiteFideId "30901561"]
[BlackFideId "25059530"]
[WhiteElo "2362"]
[BlackElo "2555"]
[Result "1-0"]
[Round "11"]
[TimeControl "180+1"]
[Date "2021.06.15"]
[WhiteClock "0:00:40"]
[BlackClock "0:00:05"]

1. d4 {[%clk 0:03:00]}  Nf6 {[%clk 0:03:00]} 2. c4 {[%clk 0:03:01]}  g6 {[%clk 0:03:00]} 3. Nc3 {[%clk 0:03:02]}  Bg7 {[%clk 0:03:00]} 4. e4 {[%clk 0:03:02]}  d6 {[%clk 0:03:01]} 5. Nf3 {[%clk 0:03:03]}  O-O {[%clk 0:03:01]} 6. Be2 {[%clk 0:03:04]}  Nbd7 {[%clk 0:03:00]} 7. O-O {[%clk 0:03:04]}  e5 {[%clk 0:03:00]} 8. Qc2 {[%clk 0:03:05]}  c6 {[%clk 0:02:57]} 9. Rd1 {[%clk 0:03:04]}  Qe7 {[%clk 0:02:56]} 10. d5 {[%clk 0:02:58]}  c5 {[%clk 0:02:55]} 11. g3 {[%clk 0:02:58]}  Kh8 {[%clk 0:02:53]} 12. Nh4 {[%clk 0:02:56]}  Ng8 {[%clk 0:02:53]} 13. Ng2 {[%clk 0:02:47]}  f5 {[%clk 0:02:37]} 14. exf5 {[%clk 0:02:46]}  gxf5 {[%clk 0:02:38]} 15. f4 {[%clk 0:02:46]}  e4 {[%clk 0:02:25]} 16. Be3 {[%clk 0:02:28]}  Nh6 {[%clk 0:02:24]} 17. a3 {[%clk 0:02:27]}  Bf6 {[%clk 0:02:17]} 18. b4 {[%clk 0:02:21]}  Qg7 {[%clk 0:02:16]} 19. Rac1 {[%clk 0:02:21]}  a5 {[%clk 0:01:57]} 20. bxa5 {[%clk 0:02:01]}  Rxa5 {[%clk 0:01:51]} 21. Nb5 {[%clk 0:02:01]}  Qe7 {[%clk 0:01:51]} 22. Bd2 {[%clk 0:02:00]}  Ra6 {[%clk 0:01:48]} 23. Ne3 {[%clk 0:02:00]}  Rg8 {[%clk 0:01:36]} 24. Bc3 {[%clk 0:01:56]}  Bxc3 {[%clk 0:01:35]} 25. Qxc3+ {[%clk 0:01:57]}  Qf6 {[%clk 0:01:33]} 26. Bf1 {[%clk 0:01:44]}  Qxc3 {[%clk 0:01:28]} 27. Rxc3 {[%clk 0:01:45]}  Nf6 {[%clk 0:01:29]} 28. Bh3 {[%clk 0:01:45]}  Kg7 {[%clk 0:01:28]} 29. Rb1 {[%clk 0:01:42]}  Kg6 {[%clk 0:01:25]} 30. Nc7 {[%clk 0:01:40]}  Ra7 {[%clk 0:01:17]} 31. Nb5 {[%clk 0:01:36]}  Ra6 {[%clk 0:01:17]} 32. Nc7 {[%clk 0:01:22]}  Ra7 {[%clk 0:00:47]} 33. Rb6 {[%clk 0:01:22]}  Rd8 {[%clk 0:00:37]} 34. Rcb3 {[%clk 0:01:14]}  Nfg8 {[%clk 0:00:14]} 35. Ne6 {[%clk 0:01:04]}  Bxe6 {[%clk 0:00:12]} 36. dxe6 {[%clk 0:01:05]}  Ne7 {[%clk 0:00:12]} 37. Rxb7 {[%clk 0:01:03]}  Rxb7 {[%clk 0:00:13]} 38. Rxb7 {[%clk 0:01:04]}  Kf6 {[%clk 0:00:11]} 39. Nd5+ {[%clk 0:01:02]}  Nxd5 {[%clk 0:00:12]} 40. cxd5 {[%clk 0:01:02]}  Ra8 {[%clk 0:00:11]} 41. Rxh7 {[%clk 0:01:02]}  Kg6 {[%clk 0:00:09]} 42. Rd7 {[%clk 0:01:01]}  Rxa3 {[%clk 0:00:08]} 43. Rxd6 {[%clk 0:01:00]}  Ra1+ {[%clk 0:00:07]} 44. Bf1 {[%clk 0:00:49]}  Ng4 {[%clk 0:00:06]} 45. e7+ {[%clk 0:00:46]}  Kf7 {[%clk 0:00:06]} 46. Re6 {[%clk 0:00:47]}  Ke8 {[%clk 0:00:06]} 47. d6 {[%clk 0:00:45]}  Rd1 {[%clk 0:00:02]} 48. d7+ {[%clk 0:00:42]}  Rxd7 {[%clk 0:00:02]} 49. Bb5 {[%clk 0:00:42]}  Nf6 {[%clk 0:00:02]} 50. Rxf6 {[%clk 0:00:40]}  Kxe7 {[%clk 0:00:02]} 51. Bxd7 {[%clk 0:00:40]}  Kxf6 {[%clk 0:00:03]} 52. Kf2 {[%clk 0:00:40]}  c4 {[%clk 0:00:03]} 53. Ke3 {[%clk 0:00:41]}  c3 {[%clk 0:00:04]} 54. Ba4 {[%clk 0:00:39]}  Kg6 {[%clk 0:00:04]} 55. Kd4 {[%clk 0:00:40]}  Kh5 {[%clk 0:00:05]} 56. Bd1+ {[%clk 0:00:40]} 1-0


[Site "https://www.chess.com"]

[Event "Titled Tuesday Blitz June 15 2021"]
[White "Javakhadze, Zurab"]
[Black "Zhigalko, Sergei"]
[WhiteFideId "13603647"]
[BlackFideId "13502956"]
[WhiteElo "2381"]
[BlackElo "2662"]
[Result "0-1"]
[Round "11"]
[TimeControl "180+1"]
[Date "2021.06.15"]
[WhiteClock "0:00:02"]
[BlackClock "0:00:03"]

1. Nf3 {[%clk 0:03:00]}  d5 {[%clk 0:03:00]} 2. g3 {[%clk 0:03:01]}  c6 {[%clk 0:03:00]} 3. Bg2 {[%clk 0:03:02]}  Bg4 {[%clk 0:03:01]} 4. c4 {[%clk 0:02:57]}  e6 {[%clk 0:02:59]} 5. cxd5 {[%clk 0:02:57]}  Bxf3 {[%clk 0:02:57]} 6. Bxf3 {[%clk 0:02:57]}  cxd5 {[%clk 0:02:58]} 7. O-O {[%clk 0:02:56]}  Nc6 {[%clk 0:02:58]} 8. d3 {[%clk 0:02:52]}  Nf6 {[%clk 0:02:59]} 9. b3 {[%clk 0:02:51]}  Bc5 {[%clk 0:02:46]} 10. Bb2 {[%clk 0:02:49]}  O-O {[%clk 0:02:46]} 11. a3 {[%clk 0:02:49]}  Rc8 {[%clk 0:02:44]} 12. b4 {[%clk 0:02:49]}  Bd4 {[%clk 0:02:44]} 13. Qd2 {[%clk 0:02:29]}  Bxb2 {[%clk 0:02:34]} 14. Qxb2 {[%clk 0:02:29]}  Qb6 {[%clk 0:02:30]} 15. e3 {[%clk 0:02:24]}  d4 {[%clk 0:02:17]} 16. e4 {[%clk 0:02:18]}  a5 {[%clk 0:02:04]} 17. Nd2 {[%clk 0:02:10]}  Ne5 {[%clk 0:01:54]} 18. Be2 {[%clk 0:02:10]}  Rc3 {[%clk 0:01:52]} 19. Qb1 {[%clk 0:01:50]}  axb4 {[%clk 0:01:16]} 20. axb4 {[%clk 0:01:49]}  Rfc8 {[%clk 0:00:43]} 21. Ra2 {[%clk 0:01:49]}  h5 {[%clk 0:00:37]} 22. h3 {[%clk 0:01:25]}  h4 {[%clk 0:00:36]} 23. f4 {[%clk 0:01:10]}  Ng6 {[%clk 0:00:30]} 24. Nc4 {[%clk 0:00:50]}  R8xc4 {[%clk 0:00:29]} 25. dxc4 {[%clk 0:00:50]}  Rxg3+ {[%clk 0:00:17]} 26. Kh2 {[%clk 0:00:51]}  d3 {[%clk 0:00:18]} 27. Bg4 {[%clk 0:00:20]}  Qe3 {[%clk 0:00:13]} 28. Qe1 {[%clk 0:00:15]}  Nxg4+ {[%clk 0:00:08]} 29. hxg4 {[%clk 0:00:15]}  Qxe1 {[%clk 0:00:07]} 30. Rxe1 {[%clk 0:00:15]}  Nxf4 {[%clk 0:00:08]} 31. c5 {[%clk 0:00:12]}  Rxg4 {[%clk 0:00:03]} 32. b5 {[%clk 0:00:11]}  Rg5 {[%clk 0:00:03]} 33. c6 {[%clk 0:00:10]}  bxc6 {[%clk 0:00:04]} 34. bxc6 {[%clk 0:00:06]}  Rc5 {[%clk 0:00:05]} 35. Rf1 {[%clk 0:00:06]}  g5 {[%clk 0:00:05]} 36. Rg1 {[%clk 0:00:04]}  Kh7 {[%clk 0:00:04]} 37. Ra7 {[%clk 0:00:04]}  Kg6 {[%clk 0:00:04]} 38. c7 {[%clk 0:00:05]}  Ne2 {[%clk 0:00:04]} 39. Rd1 {[%clk 0:00:05]}  Nf4 {[%clk 0:00:04]} 40. Kg1 {[%clk 0:00:04]}  Rc2 {[%clk 0:00:04]} 41. Rb7 {[%clk 0:00:02]}  Nh3+ {[%clk 0:00:03]} 42. Kf1 {[%clk 0:00:02]}  Nf4 {[%clk 0:00:03]} 0-1


[Site "https://www.chess.com"]

[Event "Titled Tuesday Blitz June 15 2021"]
[White "Jobava, Baadur"]
[Black "Gunina, Valentina"]
[WhiteFideId "13601520"]
[BlackFideId "4167570"]
[WhiteElo "2748"]
[BlackElo "2399"]
[Result "0-1"]
[Round "11"]
[TimeControl "180+1"]
[Date "2021.06.15"]
[WhiteClock "0:01:25"]
[BlackClock "0:00:42"]

1. e4 {[%clk 0:03:00]}  c6 {[%clk 0:03:00]} 2. c4 {[%clk 0:03:00]}  d5 {[%clk 0:02:59]} 3. cxd5 {[%clk 0:03:01]}  cxd5 {[%clk 0:02:59]} 4. exd5 {[%clk 0:03:02]}  Nf6 {[%clk 0:02:59]} 5. Qa4+ {[%clk 0:03:02]}  Nbd7 {[%clk 0:02:57]} 6. Nc3 {[%clk 0:03:02]}  g6 {[%clk 0:02:58]} 7. Nf3 {[%clk 0:03:03]}  Bg7 {[%clk 0:02:58]} 8. Bc4 {[%clk 0:03:03]}  O-O {[%clk 0:02:59]} 9. d3 {[%clk 0:03:04]}  a6 {[%clk 0:02:57]} 10. Qa3 {[%clk 0:03:04]}  Nb6 {[%clk 0:02:51]} 11. Qb3 {[%clk 0:03:02]}  Nxc4 {[%clk 0:02:51]} 12. dxc4 {[%clk 0:03:01]}  b5 {[%clk 0:02:49]} 13. O-O {[%clk 0:03:01]}  bxc4 {[%clk 0:02:40]} 14. Qxc4 {[%clk 0:03:02]}  Bb7 {[%clk 0:02:30]} 15. Rd1 {[%clk 0:03:01]}  Rc8 {[%clk 0:02:26]} 16. Qh4 {[%clk 0:02:54]}  Nxd5 {[%clk 0:02:13]} 17. Bh6 {[%clk 0:02:54]}  e6 {[%clk 0:01:07]} 18. Ng5 {[%clk 0:02:52]}  Qf6 {[%clk 0:01:07]} 19. Nce4 {[%clk 0:02:33]}  Qf4 {[%clk 0:01:07]} 20. g4 {[%clk 0:02:31]}  Nf6 {[%clk 0:00:57]} 21. Bxg7 {[%clk 0:02:31]}  Kxg7 {[%clk 0:00:45]} 22. Nxf6 {[%clk 0:02:31]}  h6 {[%clk 0:00:45]} 23. Ngh7 {[%clk 0:01:42]}  Qf3 {[%clk 0:00:42]} 24. Kf1 {[%clk 0:01:32]}  Rc2 {[%clk 0:00:43]} 25. Qg3 {[%clk 0:01:27]}  Qh1+ {[%clk 0:00:43]} 26. Qg1 {[%clk 0:01:27]}  Bg2+ {[%clk 0:00:43]} 27. Ke1 {[%clk 0:01:25]}  Qxg1# {[%clk 0:00:42]} 0-1


[Site "https://www.chess.com"]

[Event "Titled Tuesday Blitz June 15 2021"]
[White "Jones, Gawain C B"]
[Black "Annaberdiyev, Babageldi"]
[WhiteFideId "409561"]
[BlackFideId "14000385"]
[WhiteElo "2657"]
[BlackElo "2332"]
[Result "1/2-1/2"]
[Round "11"]
[TimeControl "180+1"]
[Date "2021.06.15"]
[WhiteClock "0:00:17"]
[BlackClock "0:01:02"]

1. d4 {[%clk 0:03:00]}  Nf6 {[%clk 0:02:56]} 2. c4 {[%clk 0:03:01]}  g6 {[%clk 0:02:55]} 3. Nc3 {[%clk 0:03:00]}  Bg7 {[%clk 0:02:51]} 4. e4 {[%clk 0:03:00]}  d6 {[%clk 0:02:52]} 5. f4 {[%clk 0:03:00]}  O-O {[%clk 0:02:53]} 6. Nf3 {[%clk 0:03:00]}  c5 {[%clk 0:02:52]} 7. d5 {[%clk 0:03:01]}  e6 {[%clk 0:02:46]} 8. dxe6 {[%clk 0:02:55]}  Bxe6 {[%clk 0:02:47]} 9. Be2 {[%clk 0:02:53]}  Nc6 {[%clk 0:02:38]} 10. O-O {[%clk 0:02:53]}  Nd4 {[%clk 0:02:33]} 11. Nxd4 {[%clk 0:02:50]}  cxd4 {[%clk 0:02:34]} 12. Qxd4 {[%clk 0:02:49]}  Bg4 {[%clk 0:02:35]} 13. Qd1 {[%clk 0:02:38]}  Qb6+ {[%clk 0:02:29]} 14. Kh1 {[%clk 0:02:38]}  Bxe2 {[%clk 0:02:25]} 15. Qxe2 {[%clk 0:02:39]}  Rfe8 {[%clk 0:02:10]} 16. Qd3 {[%clk 0:02:18]}  Rac8 {[%clk 0:02:07]} 17. Be3 {[%clk 0:02:03]}  Qxb2 {[%clk 0:01:51]} 18. Nb5 {[%clk 0:02:02]}  Nxe4 {[%clk 0:01:45]} 19. Nxa7 {[%clk 0:01:55]}  Ra8 {[%clk 0:01:40]} 20. Nb5 {[%clk 0:01:49]}  Rxa2 {[%clk 0:01:40]} 21. Rxa2 {[%clk 0:01:46]}  Qxa2 {[%clk 0:01:41]} 22. Nc7 {[%clk 0:01:41]}  Re7 {[%clk 0:01:26]} 23. Nd5 {[%clk 0:01:41]}  Re8 {[%clk 0:01:25]} 24. Nc7 {[%clk 0:01:40]}  Re7 {[%clk 0:01:24]} 25. Nd5 {[%clk 0:01:40]}  Re8 {[%clk 0:01:25]} 26. f5 {[%clk 0:01:40]}  Nc5 {[%clk 0:01:11]} 27. Bxc5 {[%clk 0:01:32]}  dxc5 {[%clk 0:01:12]} 28. f6 {[%clk 0:00:52]}  Bf8 {[%clk 0:01:11]} 29. Ne7+ {[%clk 0:00:50]}  Kh8 {[%clk 0:01:09]} 30. h3 {[%clk 0:00:41]}  Qb2 {[%clk 0:01:04]} 31. Qd7 {[%clk 0:00:36]}  Ra8 {[%clk 0:01:01]} 32. Nd5 {[%clk 0:00:25]}  Kg8 {[%clk 0:01:01]} 33. Ne7+ {[%clk 0:00:24]}  Kh8 {[%clk 0:01:01]} 34. Nd5 {[%clk 0:00:23]}  Kg8 {[%clk 0:01:02]} 35. Ne7+ {[%clk 0:00:17]}  Kh8 {[%clk 0:01:02]} 1/2-1/2


[Site "https://www.chess.com"]

[Event "Titled Tuesday Blitz June 15 2021"]
[White "Khusnutdinov, Rustam"]
[Black "Xiong, Jeffery"]
[WhiteFideId "13701703"]
[BlackFideId "2047640"]
[WhiteElo "2571"]
[BlackElo "2724"]
[Result "0-1"]
[Round "11"]
[TimeControl "180+1"]
[Date "2021.06.15"]
[WhiteClock "0:01:27"]
[BlackClock "0:01:53"]

1. d4 {[%clk 0:03:00]}  g6 {[%clk 0:03:00]} 2. e4 {[%clk 0:02:58]}  Bg7 {[%clk 0:03:01]} 3. Nc3 {[%clk 0:02:58]}  a6 {[%clk 0:03:01]} 4. h4 {[%clk 0:02:52]}  h5 {[%clk 0:03:01]} 5. Be3 {[%clk 0:02:52]}  d6 {[%clk 0:03:02]} 6. Qd2 {[%clk 0:02:50]}  b5 {[%clk 0:03:02]} 7. O-O-O {[%clk 0:02:50]}  Bb7 {[%clk 0:03:02]} 8. f3 {[%clk 0:02:50]}  Nd7 {[%clk 0:03:02]} 9. Nh3 {[%clk 0:02:50]}  Ngf6 {[%clk 0:03:02]} 10. Ng5 {[%clk 0:02:50]}  e6 {[%clk 0:03:03]} 11. a3 {[%clk 0:02:47]}  Qe7 {[%clk 0:03:03]} 12. Kb1 {[%clk 0:02:44]}  Nb6 {[%clk 0:03:03]} 13. Bd3 {[%clk 0:02:41]}  Nfd7 {[%clk 0:03:03]} 14. Qf2 {[%clk 0:02:19]}  Rb8 {[%clk 0:02:56]} 15. Rhe1 {[%clk 0:02:07]}  c5 {[%clk 0:02:28]} 16. dxc5 {[%clk 0:02:08]}  dxc5 {[%clk 0:02:25]} 17. Bf4 {[%clk 0:01:59]}  Bxc3 {[%clk 0:02:01]} 18. Bxb8 {[%clk 0:01:53]}  Bxe1 {[%clk 0:02:00]} 19. Qxe1 {[%clk 0:01:30]}  Nxb8 {[%clk 0:02:00]} 20. Qc3 {[%clk 0:01:27]}  O-O {[%clk 0:02:00]} 21. g4 {[%clk 0:01:27]}  hxg4 {[%clk 0:01:54]} 22. h5 {[%clk 0:01:27]}  Qxg5 {[%clk 0:01:53]} 0-1


[Site "https://www.chess.com"]